bitfinex/quotes_BTCUSD_20260125
["timestamp","ask_amount","ask_price","bid_price","bid_amount"]
[1769379016053,0.00014181,86423.0,86397.0,0.01157447]
[1769379016054,0.04997093,86409.0,86397.0,0.01157447]
[1769379016282,0.01,86410.0,86396.0,0.17772]
[1769379016283,0.04997093,86406.0,86396.0,0.17772]
[1769379018496,1.15358588,86410.0,86396.0,0.5301118]
[1769379018666,1.15358588,86410.0,86400.0,0.3513918]
[1769379020355,1.20355681,86410.0,86400.0,0.3513918]
[1769379020814,0.04997093,86410.0,86400.0,0.3513918]
[1769379021018,0.04997093,86410.0,86400.0,0.3523918]
[1769379022137,0.06943207,86416.0,86390.0,0.05793464]
[1769379022138,0.05786484,86409.0,86390.0,0.3513918]
[1769379022316,1.15358588,86403.0,86390.0,0.3513918]
[1769379022648,1.15358588,86403.0,86388.0,0.18933568]
[1769379022649,0.87909311,86429.0,86388.0,0.18933568]
[1769379022650,0.04797707,86420.0,86393.0,0.7027836]
[1769379022821,1.19986588,86429.0,86415.0,0.01157206]
[1769379023034,1.19986588,86429.0,86417.0,0.01157179]
[1769379023238,0.04797707,86432.0,86422.0,0.01157112]
[1769379023413,0.0004726,86432.0,86420.0,0.01157139]
[1769379023600,0.0004726,86432.0,86421.0,0.01157126]
[1769379024004,0.0004726,86432.0,86420.0,0.35721241]
[1769379024208,0.0004726,86432.0,86420.0,0.36234941]
[1769379024418,0.0004726,86432.0,86423.0,0.01157099]
[1769379024617,0.0004726,86432.0,86420.0,0.36234941]
[1769379024618,0.0003319,86439.0,86420.0,0.35077802]
[1769379024828,0.0003319,86439.0,86435.0,0.01156938]
[1769379025028,0.0003319,86439.0,86436.0,0.01156925]
[1769379025440,0.0003319,86439.0,86438.0,0.05784492]
[1769379025441,1e-08,86439.0,86438.0,0.05784492]
[1769379025642,0.0004,86447.0,86444.0,0.01156818]
[1769379025872,0.0002686,86455.0,86447.0,0.01156778]
[1769379026075,3.282e-05,86455.0,86446.0,0.01156791]
[1769379026506,3.282e-05,86455.0,86439.0,0.23137533]
[1769379026507,0.17816,86460.0,86458.0,1.12863343]
[1769379026508,1e-08,86460.0,86458.0,1.12863343]
[1769379026716,1e-08,86460.0,86458.0,0.04976269]
[1769379027161,0.00014173,86460.0,86458.0,0.04976269]
[1769379027792,0.00014173,86460.0,86458.0,0.03976269]
[1769379028001,0.00014173,86460.0,86451.0,1.12863343]
[1769379028002,0.00014173,86460.0,86452.0,0.04976269]
[1769379028654,0.00014173,86460.0,86452.0,0.0613298]
[1769379028864,0.00014173,86460.0,86452.0,0.04976269]
[1769379031260,0.00014173,86460.0,86452.0,0.0613298]
[1769379031796,0.00014173,86460.0,86452.0,0.04976269]
[1769379032570,0.00014173,86460.0,86454.0,0.04976269]
[1769379033761,0.00014173,86460.0,86454.0,0.06132953]
[1769379033969,0.00014173,86460.0,86454.0,0.04976269]
[1769379038528,0.00014173,86460.0,86356.0,0.56077822]
[1769379038529,0.00014173,86460.0,86416.0,0.04949494]
[1769379038530,0.01156724,86451.0,86416.0,0.04949494]
[1769379038742,0.01156724,86451.0,86400.0,0.35077802]
[1769379038743,0.00014173,86460.0,86400.0,0.35077802]
[1769379038744,1.15094338,86448.0,86430.0,0.35077802]
[1769379038918,1.15094338,86444.0,86431.0,0.15728]
[1769379039307,1.15094338,86444.0,86432.0,0.01156978]
[1769379039534,1.15094338,86444.0,86433.0,0.01156965]
[1769379039735,1.15094338,86444.0,86434.0,0.01156952]
[1769379039938,1.15094338,86444.0,86431.0,0.15728]
[1769379040882,1.15094338,86444.0,86426.0,0.05785181]
[1769379040883,0.0472837,86445.0,86420.0,0.36234941]
[1769379040884,0.0472837,86440.0,86420.0,0.36234941]
[1769379041037,0.01156845,86442.0,86426.0,0.17768]
[1769379041038,1.15094338,86437.0,86426.0,0.17768]
[1769379041852,1.15094338,86437.0,86427.0,0.01157045]
[1769379042270,1.15094338,86437.0,86428.0,0.01157032]
[1769379043775,1.15094338,86437.0,86427.0,0.01157045]
[1769379044018,1.15094338,86437.0,86426.0,0.24710327]
[1769379044270,1.15094338,86437.0,86427.0,0.01157045]
[1769379044676,1.15094338,86437.0,86426.0,0.18925059]
[1769379044880,1.15094338,86437.0,86426.0,0.17768]
[1769379045096,1.15094338,86437.0,86426.0,0.18925059]
[1769379045846,1.15094338,86437.0,86427.0,0.01157045]
[1769379046054,1.15094338,86437.0,86426.0,0.18925059]
[1769379046193,1.15094338,86437.0,86427.0,0.01157045]
[1769379046408,1.15094338,86437.0,86426.0,0.18925059]
[1769379046809,1.15094338,86437.0,86426.0,0.17768]
[1769379047010,1.15094338,86437.0,86426.0,0.18925059]
[1769379047841,1.15094338,86437.0,86426.0,0.17768]
[1769379048018,1.15094338,86437.0,86426.0,0.18925059]
[1769379048197,1.15094338,86437.0,86426.0,0.17768]
[1769379049194,1.20878816,86439.0,86418.0,0.01157166]
[1769379049414,0.81023166,86454.0,86411.0,0.0115726]
[1769379049415,1.16251169,86443.0,86422.0,0.01157112]
[1769379049616,1.16251196,86441.0,86421.0,0.04949494]
[1769379049893,1.15094338,86438.0,86421.0,0.04949494]
[1769379050465,1.15094338,86438.0,86421.0,0.0610662]
[1769379050692,1.15094338,86438.0,86422.0,0.06106606]
[1769379051081,1.15094338,86438.0,86425.0,0.01157072]
[1769379051715,1.15094338,86446.0,86426.0,0.06106553]
[1769379051863,1.15094338,86444.0,86426.0,0.06106553]
[1769379052105,1.15094338,86447.0,86430.0,0.36234807]
[1769379052306,0.05885094,86451.0,86430.0,0.36234807]
[1769379052307,1.15094338,86445.0,86430.0,0.35077802]
[1769379053013,1.15094338,86445.0,86426.0,0.04949494]
[1769379053014,1.15094338,86453.0,86438.0,0.01156898]
[1769379053208,1.15094338,86453.0,86441.0,0.01156858]
[1769379053569,1.15094338,86453.0,86440.0,0.36234673]
[1769379053723,1.15094338,86453.0,86440.0,0.35077802]
[1769379053937,1.15094338,86453.0,86440.0,0.40027296]
[1769379054133,1.15094338,86453.0,86440.0,0.04949494]
[1769379055808,0.01156764,86448.0,86430.0,0.35077802]
[1769379056027,1.15094338,86450.0,86432.0,0.06106472]
[1769379056253,1.16251075,86450.0,86432.0,0.04949494]
[1769379056850,1.15094338,86450.0,86432.0,0.06106472]
[1769379057159,1.15094338,86450.0,86432.0,0.04949494]
[1769379057364,1.15094338,86450.0,86433.0,0.01156965]
[1769379058028,1.15094338,86450.0,86432.0,0.06106472]
[1769379058199,1.15094338,86450.0,86433.0,0.01156965]
[1769379058409,1.15094338,86450.0,86434.0,0.01156952]
[1769379058932,1.15094338,86450.0,86435.0,0.01156938]
[1769379059251,0.98555198,86450.0,86434.0,0.01156952]
[1769379059454,0.98555198,86450.0,86435.0,0.01156938]
[1769379059701,0.0472837,86453.0,86434.0,0.01156952]
[1769379059702,0.0472837,86453.0,86440.0,0.36234673]
[1769379059915,0.0472837,86453.0,86440.0,0.35077802]
[1769379060121,1.15094338,86452.0,86440.0,0.35077802]
[1769379061978,1.15094338,86452.0,86435.0,0.17768]
[1769379061979,0.0472837,86451.0,86427.0,0.01157045]
[1769379062207,0.0472837,86447.0,86430.0,0.35077802]
[1769379062418,1.15094338,86446.0,86430.0,0.35077802]
[1769379062632,1.15094338,86446.0,86430.0,0.40027296]
[1769379062838,1.15094338,86446.0,86430.0,1.50507268]
[1769379063680,1.15094338,86446.0,86430.0,1.49350263]
[1769379063875,1.15094338,86446.0,86431.0,0.01156992]
[1769379064303,1.15094338,86446.0,86430.0,1.49350263]
[1769379064512,0.0472837,86447.0,86430.0,1.49350263]
[1769379064513,0.0472837,86447.0,86431.0,0.17768]
[1769379064737,1.15225527,86447.0,86431.0,0.17768]
[1769379065360,1.1645865,86447.0,86431.0,0.17768]
[1769379065558,1.15301872,86447.0,86431.0,0.17768]
[1769379065809,0.04804715,86446.0,86431.0,0.17768]
[1769379066096,0.58224289,86460.0,86420.0,0.49897802]
[1769379066097,0.04804715,86442.0,86420.0,0.49897802]
[1769379066279,1.10497157,86442.0,86430.0,0.35077802]
[1769379066445,1.10497157,86441.0,86430.0,0.35077802]
[1769379066650,1.15301872,86441.0,86430.0,0.35077802]
[1769379067433,1.15301872,86441.0,86427.0,0.17768]
[1769379067641,1.15301872,86441.0,86427.0,0.18925045]
[1769379067852,1.10497157,86439.0,86427.0,0.18925045]
[1769379068067,1.15301872,86439.0,86428.0,0.01157032]
[1769379068265,1.15301872,86439.0,86429.0,0.01157019]
[1769379068613,1.15301872,86439.0,86428.0,0.01157032]
[1769379069022,1.15301872,86439.0,86426.0,0.01157059]
[1769379069360,0.01156711,86452.0,86428.0,0.06942176]
[1769379069562,0.04804715,86447.0,86436.0,0.01156925]
[1769379069756,0.04804715,86447.0,86437.0,0.35077802]
[1769379069965,0.04804715,86447.0,86440.0,0.01156871]
[1769379070127,0.0004,86469.0,86440.0,0.01156871]
[1769379070128,1.10497157,86458.0,86447.0,0.01]
[1769379070344,0.17768,86464.0,86447.0,0.01]
[1769379070345,1.15301872,86457.0,86447.0,0.01]
[1769379070546,0.04804715,86456.0,86440.0,0.01156871]
[1769379070752,0.04804715,86456.0,86437.0,0.01156911]
[1769379070753,1.10497157,86456.0,86437.0,0.01156911]
[1769379071096,1.10497157,86454.0,86439.0,0.01156885]
[1769379071292,1.10497157,86454.0,86440.0,0.05784359]
[1769379071507,1.10497157,86454.0,86440.0,0.01156871]
[1769379071654,1.10497157,86454.0,86439.0,0.01156885]
[1769379072062,1.10497157,86454.0,86435.0,0.06109306]
[1769379072284,1.10497157,86454.0,86439.0,0.01156885]
[1769379072453,1.10497157,86454.0,86438.0,0.01156898]
[1769379072660,1.10497157,86454.0,86440.0,0.35077802]
[1769379073315,1.15301872,86454.0,86440.0,0.35077802]
[1769379075099,0.95418391,86454.0,86440.0,0.35077802]
[1769379076202,0.95418391,86454.0,86440.0,0.36234673]
[1769379077100,0.95418391,86454.0,86440.0,0.01156871]
[1769379077841,0.90613676,86454.0,86440.0,0.01156871]
[1769379078068,1.15704516,86453.0,86440.0,0.01156871]
[1769379078944,1.15704516,86453.0,86441.0,0.01156858]
[1769379079675,1.15704516,86453.0,86440.0,0.01156871]
[1769379079928,1.11153184,86459.0,86440.0,0.01156871]
[1769379080383,1.11153184,86455.0,86437.0,0.01156911]
[1769379080594,1.11153184,86453.0,86435.0,1.10362174]
[1769379080812,1.15704516,86453.0,86437.0,0.01156911]
[1769379081030,1.15704516,86453.0,86437.0,1.10362147]
[1769379081273,1.15704516,86453.0,86439.0,0.01156885]
[1769379081492,0.04551332,86453.0,86439.0,0.01156885]
[1769379081698,0.04551332,86453.0,86444.0,0.01156818]
[1769379081916,0.04551332,86453.0,86442.0,0.01156845]
[1769379082128,0.04551332,86453.0,86443.0,0.01156831]
[1769379082569,0.04551332,86453.0,86442.0,0.01156845]
[1769379082752,0.04551332,86453.0,86443.0,0.01156831]
[1769379083615,1.11153184,86459.0,86444.0,0.01156818]
[1769379083834,1.11153184,86459.0,86443.0,0.01156831]
[1769379084388,0.04551332,86458.0,86443.0,0.01156831]
[1769379084597,1.11153184,86458.0,86442.0,0.01156845]
[1769379084817,0.04551332,86455.0,86440.0,0.35077802]
[1769379085378,0.04551332,86455.0,86442.0,0.01156845]
[1769379085601,0.04551332,86455.0,86441.0,0.01156858]
[1769379085834,0.04551332,86455.0,86440.0,0.36221998]
[1769379086840,0.04551332,86453.0,86435.0,0.01156938]
[1769379087188,0.350793,86460.0,86438.0,0.01156898]
[1769379087189,0.04551332,86449.0,86438.0,0.01156898]
[1769379087398,0.04551332,86449.0,86440.0,0.36221998]
[1769379087604,0.04694925,86459.0,86444.0,0.01156818]
[1769379087797,0.04694925,86459.0,86443.0,1.10362067]
[1769379088005,0.04551332,86458.0,86444.0,0.01156818]
[1769379088616,0.04551332,86457.0,86445.0,0.01156804]
[1769379088846,0.04551332,86457.0,86444.0,0.01156818]
[1769379089077,0.04551332,86457.0,86443.0,0.01156831]
[1769379090024,0.00014173,86460.0,86447.0,0.35065127]
[1769379090276,0.00014173,86460.0,86432.0,0.1482]
[1769379090277,0.00014173,86460.0,86457.0,0.01]
[1769379090637,0.00014173,86460.0,86452.0,0.01156711]
[1769379090835,0.00014173,86460.0,86451.0,0.01156724]
[1769379091226,0.00014173,86460.0,86450.0,0.36221864]
[1769379091468,0.00014173,86460.0,86450.0,0.35065127]
[1769379091868,0.00014173,86460.0,86450.0,0.36221864]
[1769379092082,0.00014173,86460.0,86450.0,0.35065127]
[1769379093082,0.00014173,86460.0,86452.0,1.1581836]
[1769379093283,0.00014173,86460.0,86456.0,0.01156657]
[1769379093643,0.00014173,86460.0,86457.0,0.01156644]
[1769379093823,0.00014173,86460.0,86456.0,0.01156657]
[1769379093982,0.00014173,86460.0,86456.0,0.0114104]
[1769379094388,0.00014173,86460.0,86455.0,0.06029738]
[1769379096033,0.00014173,86460.0,86456.0,0.01156657]
[1769379096881,0.00014173,86460.0,86453.0,0.01156697]
[1769379097086,0.00014173,86460.0,86453.0,0.06940178]
[1769379097305,0.00014173,86460.0,86454.0,0.01156684]
[1769379097498,0.00014173,86460.0,86455.0,0.01156671]
[1769379097741,0.00014173,86460.0,86454.0,0.01156684]
[1769379097947,0.00014173,86460.0,86455.0,0.01156671]
[1769379098167,0.00014173,86460.0,86454.0,0.01156684]
[1769379098607,0.00014173,86460.0,86456.0,0.01156657]
[1769379098815,0.00014173,86460.0,86457.0,0.01156644]
[1769379099030,0.0004,86469.0,86464.0,0.0115655]
[1769379099270,0.05781424,86484.0,86464.0,0.0115655]
[1769379099271,5.16e-05,86472.0,86469.0,0.01156483]
[1769379099823,5.16e-05,86472.0,86468.0,0.01156497]
[1769379100020,5.16e-05,86472.0,86465.0,1.2986583]
[1769379100226,5.16e-05,86472.0,86466.0,0.01156523]
[1769379100830,5.16e-05,86472.0,86467.0,0.0115651]
[1769379101259,5.16e-05,86472.0,86466.0,0.01156523]
[1769379101417,5.16e-05,86472.0,86465.0,1.28709293]
[1769379102953,1.11996023,86481.0,86417.0,0.168936]
[1769379102954,0.01156323,86481.0,86417.0,0.168936]
[1769379103165,0.0004,86483.0,86449.0,0.05783698]
[1769379103166,0.04843153,86469.0,86449.0,0.05783698]
[1769379103389,1.11996023,86466.0,86450.0,0.52829127]
[1769379103589,1.11996023,86464.0,86450.0,0.52829127]
[1769379103771,1.16839176,86461.0,86450.0,0.52829127]
[1769379103977,1.16839176,86461.0,86460.0,0.001]
[1769379103978,1.11996023,86461.0,86460.0,0.001]
[1769379104182,0.04843153,86458.0,86450.0,0.35065127]
[1769379104469,1.16839176,86457.0,86450.0,0.35065127]
[1769379104836,1.16839176,86457.0,86449.0,0.00014172]
[1769379105211,1.11996023,86457.0,86449.0,0.00014172]
[1769379105426,1.16839176,86456.0,86449.0,0.00014172]
[1769379105654,1.16839176,86456.0,86450.0,0.001]
[1769379105857,1.13367318,86456.0,86450.0,0.001]
[1769379106021,1.13367318,86456.0,86449.0,0.00014172]
[1769379106447,1.13367318,86456.0,86449.0,0.00114172]
[1769379106681,1.11996023,86456.0,86449.0,0.00114172]
[1769379106883,1.11996023,86456.0,86440.0,0.35065127]
[1769379106884,0.04843153,86453.0,86440.0,0.35065127]
[1769379107046,1.16839176,86450.0,86440.0,0.35065127]
[1769379108383,0.00014159,86453.0,86434.0,0.17764]
[1769379108384,1.16839176,86448.0,86434.0,0.17764]
[1769379108591,0.00014159,86453.0,86434.0,0.18920952]
[1769379108592,1.11996023,86446.0,86434.0,0.18920952]
[1769379108778,1.16839176,86446.0,86434.0,0.17764]
[1769379109275,1.16839176,86446.0,86434.0,0.18920952]
[1769379109493,1.16839176,86446.0,86435.0,0.0012439]
[1769379109736,1.16839176,86446.0,86435.0,0.00108774]
[1769379109941,1.16839176,86446.0,86436.0,0.35065127]
[1769379110272,0.99690948,86446.0,86436.0,0.35065127]
[1769379111413,0.99690948,86446.0,86436.0,0.36222052]
[1769379111642,0.99690948,86446.0,86436.0,0.35065127]
[1769379112259,0.99690948,86446.0,86436.0,0.35165127]
[1769379112901,0.99690948,86446.0,86436.0,0.35065127]
[1769379113136,0.99690948,86446.0,86436.0,0.35165127]
[1769379113486,0.99690948,86446.0,86436.0,0.001]
[1769379114626,1.11996023,86444.0,86420.0,0.36222266]
[1769379114810,0.04843153,86441.0,86420.0,0.35065127]
[1769379115010,0.00014159,86453.0,86405.0,0.0115734]
[1769379115011,0.01157059,86426.0,86405.0,0.0115734]
[1769379115428,0.01157059,86426.0,86410.0,0.35065127]
[1769379115429,1.11996023,86423.0,86410.0,0.35065127]
[1769379115609,1.11996023,86423.0,86407.0,0.17764]
[1769379115820,1.11996023,86423.0,86421.0,0.001]
[1769379115963,0.06942211,86428.0,86421.0,0.001]
[1769379115964,1.16839176,86422.0,86421.0,0.001]
[1769379116174,1.16849545,86422.0,86408.0,0.011573]
[1769379116574,1.16849545,86422.0,86410.0,0.01157273]
[1769379116783,1.12006392,86422.0,86410.0,0.01157273]
[1769379118230,0.00010369,86422.0,86416.0,0.01157193]
[1769379118669,0.00010369,86422.0,86413.0,0.01157233]
[1769379119105,0.00010369,86422.0,86414.0,0.01157219]
[1769379119527,0.00010369,86422.0,86412.0,0.04873067]
[1769379122105,0.00010369,86422.0,86403.0,0.23147191]
[1769379122106,1.11996023,86419.0,86402.0,0.04873067]
[1769379122272,1.11996023,86419.0,86403.0,0.17768]
[1769379122805,1.11996023,86419.0,86403.0,0.18925367]
[1769379123125,1.11996023,86419.0,86404.0,0.01157353]
[1769379123829,1.11996023,86419.0,86403.0,0.18925367]
[1769379124067,1.11996023,86419.0,86404.0,0.01157353]
[1769379124266,1.11996023,86419.0,86408.0,0.011573]
[1769379124471,1.11996023,86419.0,86406.0,0.0002439]
[1769379124999,1.11996023,86419.0,86403.0,0.18925367]
[1769379125000,1.11996023,86419.0,86404.0,0.04544812]
[1769379126333,1.11996023,86419.0,86409.0,0.01157286]
[1769379126596,1.11996023,86419.0,86406.0,0.04544812]
[1769379131122,1.11996023,86419.0,86408.0,0.011573]
[1769379131326,1.11996023,86419.0,86409.0,0.01157286]
[1769379131526,1.11996023,86419.0,86406.0,0.06943938]
[1769379131730,1.11996023,86419.0,86407.0,0.05702125]
[1769379132184,1.11996023,86419.0,86408.0,0.011573]
[1769379132500,1.11996023,86419.0,86407.0,0.05702125]
[1769379134738,1.11996023,86419.0,86407.0,0.04544812]
[1769379135316,1.11996023,86419.0,86407.0,0.05702125]
[1769379135521,1.11996023,86419.0,86407.0,0.04544812]
[1769379135742,1.11996023,86419.0,86407.0,0.05702125]
[1769379136191,1.11996023,86419.0,86407.0,0.04544812]
[1769379136959,1.11996023,86419.0,86407.0,0.05702125]
[1769379137592,1.11996023,86419.0,86407.0,0.04544812]
[1769379142317,0.00010369,86422.0,86403.0,0.17768]
[1769379142318,0.00010369,86422.0,86420.0,0.03578669]
[1769379142537,0.00010369,86422.0,86420.0,0.03562814]
[1769379143059,0.00010369,86422.0,86414.0,0.06111889]
[1769379143305,0.00010369,86422.0,86414.0,0.0495467]
[1769379145453,1.1286857,86421.0,86405.0,0.0495467]
[1769379145673,0.00010369,86422.0,86407.0,0.18929313]
[1769379145674,1.1286857,86419.0,86407.0,0.18929313]
[1769379146074,1.1286857,86419.0,86409.0,0.01157286]
[1769379146283,1.1286857,86419.0,86407.0,0.18929313]
[1769379146649,1.1286857,86419.0,86409.0,0.01157286]
[1769379146898,1.1286857,86419.0,86408.0,0.011573]
[1769379148456,0.00010369,86422.0,86419.0,0.01157152]
[1769379148662,0.0001845,86447.0,86409.0,0.35097316]
[1769379148663,1.1286857,86439.0,86424.0,0.0495467]
[1769379148905,1.1286857,86439.0,86433.0,0.01156965]
[1769379148906,4.721e-05,86439.0,86433.0,0.01156965]
[1769379149132,4.721e-05,86439.0,86421.0,0.17772]
[1769379149133,1.1288702,86447.0,86440.0,0.01156871]
[1769379149134,0.0001845,86447.0,86440.0,0.01156871]
[1769379149356,0.0001845,86447.0,86443.0,0.01156831]
[1769379149791,0.0001845,86447.0,86443.0,0.0495467]
[1769379150238,0.01,86443.0,86435.0,0.01156938]
[1769379150444,0.01,86443.0,86437.0,0.0495467]
[1769379150445,7.813e-05,86443.0,86437.0,0.0495467]
[1769379150695,1.1286857,86452.0,86437.0,0.0495467]
[1769379150905,1.1286857,86452.0,86439.0,0.05784426]
[1769379150906,4.721e-05,86452.0,86439.0,0.05784426]
[1769379151118,4.721e-05,86452.0,86441.0,0.01156858]
[1769379151321,1.1286857,86451.0,86435.0,0.06111608]
[1769379151533,0.35097316,86450.0,86437.0,0.01156911]
[1769379151727,0.35097316,86450.0,86438.0,0.01156898]
[1769379151728,1.47965886,86450.0,86438.0,0.01156898]
[1769379151978,1.47965886,86450.0,86437.0,0.06111581]
[1769379152194,1.47965886,86450.0,86438.0,0.01156898]
[1769379152633,1.47965886,86450.0,86439.0,0.01156885]
[1769379153218,1.47965886,86450.0,86438.0,0.01156898]
[1769379153608,1.47965886,86450.0,86437.0,0.06111581]
[1769379153845,1.47965886,86450.0,86438.0,0.01156898]
[1769379154055,1.47965886,86450.0,86437.0,0.06111581]
[1769379154253,1.47965886,86450.0,86437.0,0.0495467]
[1769379154460,1.15293516,86449.0,86437.0,0.0495467]
[1769379155780,1.15293516,86449.0,86437.0,0.06111581]
[1769379155980,1.15293516,86449.0,86437.0,0.0495467]
[1769379157022,1.15293516,86449.0,86421.0,0.23142348]
[1769379157023,1.15293516,86443.0,86423.0,0.01157099]
[1769379157215,1.15293516,86439.0,86423.0,0.04708706]
[1769379157415,4.721e-05,86452.0,86415.0,0.01157206]
[1769379157416,0.35097316,86433.0,86415.0,0.01157206]
[1769379157661,1.15293516,86429.0,86415.0,0.01157206]
[1769379157966,1.15293516,86429.0,86413.0,0.01157233]
[1769379157967,1.2005328,86429.0,86413.0,0.01157233]
[1769379158183,1.2005328,86429.0,86414.0,0.01157219]
[1769379158358,1.2005328,86429.0,86415.0,0.01157206]
[1769379158571,1.2005328,86429.0,86413.0,0.01157233]
[1769379158777,1.2005328,86429.0,86414.0,0.01157219]
[1769379159759,1.2005328,86429.0,86413.0,0.01157233]
[1769379160040,1.2005328,86429.0,86414.0,0.01157219]
[1769379160682,0.35097316,86430.0,86411.0,0.0002367]
[1769379160683,0.01157032,86428.0,86411.0,0.0002367]
[1769379160889,1.15293516,86420.0,86411.0,0.0002367]
[1769379161065,1.2005328,86420.0,86408.0,0.011573]
[1769379161273,0.06942201,86428.0,86408.0,0.011573]
[1769379161274,0.36254321,86430.0,86411.0,0.0115726]
[1769379161430,1.15293516,86427.0,86413.0,0.01157233]
[1769379161642,1.15293516,86427.0,86411.0,0.0115726]
[1769379161843,1.15293516,86427.0,86410.0,0.01157273]
[1769379162053,1.15293516,86427.0,86411.0,0.0115726]
[1769379162466,1.15293516,86427.0,86412.0,0.01157246]
[1769379163422,1.15293516,86427.0,86413.0,0.01157233]
[1769379163772,1.15293516,86427.0,86412.0,0.01157246]
[1769379164002,1.15293516,86427.0,86414.0,0.01157219]
[1769379164202,1.15293516,86427.0,86416.0,0.05785908]
[1769379164435,1.15293516,86427.0,86414.0,0.01157219]
[1769379164719,1.15293516,86427.0,86415.0,0.01157206]
[1769379164930,1.15293516,86427.0,86414.0,0.01157219]
[1769379165107,1.15293516,86427.0,86415.0,0.01157206]
[1769379165688,1.15293516,86427.0,86413.0,0.01157233]
[1769379166874,1.15293516,86427.0,86414.0,0.06943289]
[1769379167299,1.15293516,86427.0,86413.0,0.01157233]
[1769379167672,1.15293516,86427.0,86415.0,0.01157206]
[1769379168085,1.15293516,86427.0,86414.0,0.01157219]
[1769379168262,1.15293516,86427.0,86415.0,0.01157206]
[1769379168790,0.35097316,86430.0,86419.0,0.01157152]
[1769379169119,0.00143593,86429.0,86417.0,0.05865885]
[1769379169328,0.00143593,86429.0,86418.0,0.01157166]
[1769379169763,0.00143593,86429.0,86413.0,1.13521793]
[1769379169764,0.05916421,86456.0,86437.0,1.13521793]
[1769379169976,0.0002367,86475.0,86430.0,0.01]
[1769379169977,1.15293516,86446.0,86431.0,0.01156992]
[1769379170181,1.15293516,86446.0,86431.0,0.06941938]
[1769379170385,1.15293516,86446.0,86430.0,0.01157005]
[1769379170622,1.15293516,86446.0,86431.0,0.01156992]
[1769379170825,1.15293516,86446.0,86430.0,0.01157005]
[1769379170987,1.15293516,86446.0,86430.0,4.721e-05]
[1769379171188,0.35097316,86440.0,86430.0,4.721e-05]
[1769379171389,1.15293516,86443.0,86430.0,4.721e-05]
[1769379171748,1.15293516,86439.0,86430.0,4.721e-05]
[1769379173534,1.15293516,86439.0,86420.0,0.01157139]
[1769379173743,0.0002367,86447.0,86420.0,0.0004726]
[1769379173744,0.35097316,86430.0,86420.0,0.0004726]
[1769379173946,1.2005328,86428.0,86420.0,0.0004726]
[1769379175795,1.15293516,86428.0,86420.0,0.0004726]
[1769379175917,1.2005328,86427.0,86420.0,0.0004726]
[1769379177021,0.04759764,86426.0,86408.0,0.04708706]
[1769379177256,1.2005328,86424.0,86410.0,0.17768]
[1769379177487,1.2005328,86424.0,86410.0,0.18925273]
[1769379178385,1.2005328,86424.0,86410.0,0.17768]
[1769379180328,0.04759764,86438.0,86418.0,0.01157166]
[1769379180531,1.15293516,86435.0,86420.0,0.01157139]
[1769379180734,1.2005328,86435.0,86419.0,0.01157152]
[1769379181168,1.2005328,86435.0,86418.0,0.01157166]
[1769379181374,1.2005328,86435.0,86417.0,0.01157179]
[1769379181567,1.2005328,86435.0,86418.0,0.01157166]
[1769379182188,1.2005328,86435.0,86419.0,0.01157152]
[1769379182392,1.03012525,86435.0,86418.0,0.01157166]
[1769379183628,1.03012525,86435.0,86416.0,0.01157193]
[1769379183834,1.03012525,86435.0,86417.0,0.01157179]
[1769379184410,1.03012525,86435.0,86418.0,0.01157166]
[1769379184857,1.03012525,86435.0,86417.0,0.01157179]
[1769379185069,1.03012525,86435.0,86418.0,0.01157166]
[1769379185222,1.03012525,86435.0,86421.0,0.01157126]
[1769379185750,1.03012525,86435.0,86423.0,0.01157099]
[1769379186065,1.02012525,86435.0,86423.0,0.01157099]
[1769379186271,0.35097316,86440.0,86426.0,0.01157059]
[1769379186478,0.17772,86443.0,86426.0,0.04874289]
[1769379186679,0.17772,86443.0,86427.0,0.01157045]
[1769379186680,0.35097316,86440.0,86427.0,0.01157045]
[1769379187080,0.35097316,86440.0,86426.0,0.0371723]
[1769379189092,0.01156657,86456.0,86420.0,0.35097316]
[1769379189291,1.05495111,86451.0,86434.0,0.04936171]
[1769379189499,1.05495111,86449.0,86434.0,0.04936171]
[1769379189707,0.35097316,86444.0,86434.0,0.04936171]
[1769379189912,0.35097316,86444.0,86433.0,0.01156965]
[1769379190131,0.35097316,86450.0,86432.0,0.01156978]
[1769379190345,1.05495111,86450.0,86432.0,0.04936171]
[1769379190550,1.05495111,86450.0,86444.0,0.01156818]
[1769379190551,0.00047253,86450.0,86444.0,0.01156818]
[1769379190756,0.168,86460.0,86440.0,1.13373662]
[1769379190757,1.05495111,86465.0,86448.0,0.04936171]
[1769379191003,0.04628,86478.0,86448.0,0.04936171]
[1769379191004,0.00028912,86464.0,86451.0,0.04936171]
[1769379191212,0.00028912,86464.0,86452.0,0.04936171]
[1769379191640,0.01156564,86463.0,86452.0,0.04936171]
[1769379191845,0.00028912,86464.0,86452.0,0.04936171]
[1769379192048,0.01185462,86464.0,86452.0,0.04936171]
[1769379192673,0.35097316,86462.0,86445.0,1.13373662]
[1769379192899,0.35097316,86462.0,86446.0,0.04936171]
[1769379193303,0.01,86446.0,86433.0,0.01156965]
[1769379193503,1.05495111,86447.0,86433.0,0.01156965]
[1769379193738,0.35097316,86443.0,86428.0,0.01157032]
[1769379194075,1.10460036,86442.0,86430.0,0.01157005]
[1769379194277,0.35097316,86450.0,86431.0,0.01156992]
[1769379194483,1.10460036,86448.0,86433.0,0.01156965]
[1769379194686,1.10460036,86448.0,86430.0,0.01157005]
[1769379194831,0.36254053,86450.0,86429.0,1.14530681]
[1769379194832,0.04964925,86446.0,86429.0,0.01157019]
[1769379194999,0.04964925,86444.0,86428.0,0.01157032]
[1769379195214,1.05495111,86443.0,86428.0,0.01157032]
[1769379195612,1.05495111,86443.0,86429.0,0.01157019]
[1769379195839,1.05495111,86443.0,86431.0,0.01156992]
[1769379196067,0.04964925,86444.0,86431.0,0.01156992]
[1769379196068,0.04964925,86444.0,86433.0,0.01156965]
[1769379196252,0.04929155,86455.0,86438.0,0.01156898]
[1769379196529,1.1919353,86455.0,86437.0,1.21240156]
[1769379196727,1.1919353,86455.0,86438.0,0.01156898]
[1769379196983,1.14264375,86455.0,86440.0,1.20083245]
[1769379197476,1.1919353,86449.0,86431.0,0.11636334]
[1769379197888,1.1919353,86449.0,86433.0,0.01156965]
[1769379198900,1.1919353,86449.0,86432.0,0.01156978]
[1769379199237,1.14264375,86448.0,86431.0,0.22462439]
[1769379199438,0.04929155,86447.0,86432.0,0.01156978]
[1769379199823,0.04929155,86447.0,86431.0,0.22462439]
[1769379200389,0.04929155,86447.0,86431.0,0.23619431]
[1769379200996,0.04929155,86447.0,86431.0,0.22462439]
[1769379201417,0.04929155,86447.0,86431.0,0.04694439]
[1769379201418,1.1919353,86447.0,86431.0,0.04694439]
[1769379201623,1.14264375,86445.0,86425.0,0.01157072]
[1769379201825,1.14264375,86441.0,86427.0,0.01157045]
[1769379203288,1.14264375,86441.0,86426.0,0.18925059]
[1769379203861,1.14264375,86441.0,86427.0,0.01157045]
[1769379204453,1.14264375,86441.0,86426.0,0.18925059]
[1769379204599,1.14264375,86441.0,86427.0,0.01157045]
[1769379204797,1.14264375,86441.0,86430.0,0.01157005]
[1769379205006,1.14264375,86441.0,86431.0,0.01156992]